Cogmind - Beta 11.1 @@@ ROGUE MODE // 2022.05.05 @ 21:52:17 Player: IceNine Result: Destroyed by G-34 Mercenary with Small Laser Performance ------------- Evolutions (1) 500 Regions Visited (3) 600 Robots Destroyed (26) 130 Value Destroyed (688) 688 Prototype IDs (0) 0 Alien Tech Used (0) 0 Bonus (0) 0 TOTAL SCORE: 1918 Bonus ------- None Cogmind --------- Core Integrity 0/400 Matter 164/300 Energy 100/100 System Corruption 15% Temperature Cool (6) Movement Core (200) Ox3 Location -9/Materials Parts ------- > --- POWER (1) -------- (None) > --- PROPULSION (2) --- (None) > --- UTILITY (3) ------ Medium Storage Unit > --- WEAPON (3) ------- (None) > --- INVENTORY (10) --- (None) Peak State ------------ > --- POWER ------------ Backup Power I > --- PROPULSION ------- Backup Propulsion I Backup Propulsion I > --- UTILITY ---------- Medium Storage Unit Transport Network Coupler Hardened Light Armor Plating > --- WEAPON ----------- Assault Rifle Mini Grenade Launcher Datajack > --- INVENTORY -------- Sensor Array ECM Suite [Rating: 11] Favorites ----------- Power Reinforced Ion Engine Engine Reinforced Ion Engine Propulsion Light Treads Treads Light Treads Leg Aluminum Leg Hover Unit Backup Propulsion I Utility Transport Network Coupler Device Weight Redist. System Storage Medium Storage Unit Processor Transport Network Coupler Protection Hardened Light Armor Plating Weapon Assault Rifle Energy Gun EM Pulse Gun Ballistic Gun Assault Rifle Launcher Mini Grenade Launcher Special Melee Weapon Datajack Build | -11 -10 -10 -9 ------- Run | Scr Mat Min Mat Slots Evolved 2 | . . . 2 Power . | . . . . Propulsion . | . . . . Utility 1 | . . . 1 Weapon 1 | . . . 1 Parts Attached 26 | 6 12 3 5 Power 3 | 1 2 . . Engine 3 | 1 2 . . Core . | . . . . Reactor . | . . . . Propulsion 5 | 2 3 . . Treads 3 | 2 1 . . Leg 2 | . 2 . . Wheel . | . . . . Hover . | . . . . Flight . | . . . . Utility 7 | 1 2 1 3 Device 3 | . 1 . 2 Storage 2 | 1 . . 1 Processor 1 | . 1 . . Hackware . | . . . . Protection 1 | . . 1 . Artifact . | . . . . Weapon 11 | 2 5 2 2 Energy Gun 6 | 1 4 1 . Energy Cannon . | . . . . Ballistic Gun 3 | 1 1 . 1 Ballistic Cannon . | . . . . Launcher 1 | . . . 1 Special Weapon . | . . . . Impact Weapon . | . . . . Slashing Weapon . | . . . . Piercing Weapon . | . . . . Special Melee Weapon 1 | . . 1 . Unidentified Prototypes . | . . . . Parts Lost 18 | . 4 4 10 Power 2 | . 1 . 1 Propulsion 4 | . 1 1 2 Utility 5 | . . 1 4 Weapon 7 | . 2 2 3 Highest Loss Streak 4 | . 2 4 4 To Critical Strikes 1 | . . 1 . Average Slot Usage (%) 78 | . 92 60 65 Engine 8 | . 13 . 3 Treads 9 | . 17 . . Leg 3 | . 4 8 . Hover 3 | . . . 9 Device 10 | . 12 9 7 Storage 4 | . 1 . 11 Processor 10 | . 12 14 4 Protection 2 | . . 4 4 Energy Gun 12 | . 19 17 . Ballistic Gun 7 | . 8 . 8 Launcher 1 | . . . 5 Special Melee Weapon 4 | . . 4 10 Naked Turns . | . . . . Heaviest Build 20 | 13 15 6 20 Greatest Support 46 | 40 46 10 12 Greatest Overweight (x) 5 | . 1 1 5 Average Overweight (x) . | . . . 2 Largest Inventory Capacity 10 | 8 8 5 10 Average Capacity 7 | 7 5 5 10 Most Carried 7 | 5 7 5 3 Average Carried 3 | 2 4 3 . Final Capacity 10 | 8 5 5 10 Final Carried 5 | 4 5 2 . Class Distribution -------------------- 84% | Mutant 15% | Scavenger-Mutant Dominant Class ---------------- Mutant | -10/Materials Scavenger-Mutant | -10/Mines Mutant | -9/Materials Resources | -11 -10 -10 -9 ----------- Run | Scr Mat Min Mat Matter Collected 624 | 215 305 . 104 Remotely . | . . . . Salvage Created 1052 | . 885 . 167 Parts 57 | . 55 . 2 Haulers Intercepted 2 | . 2 . . Recyclers Shooed 1 | . 1 . . Parts Field Recycled . | . . . . Retrieved Matter . | . . . . Parts Self-Destructed . | . . . . Prevented . | . . . . Kills | -11 -10 -10 -9 ------- Run | Scr Mat Min Mat Combat Hostiles Destroyed 19 | . 15 . 4 Guns 18 | . 15 . 3 AOE 1 | . . . 1 Classes Destroyed 6 | . 5 . 1 Hauler 2 | . 2 . . Recycler 3 | . 2 . 1 Watcher 2 | . 2 . . Swarmer 3 | . 3 . . Grunt 15 | . 12 . 3 Sentry 1 | . . . 1 Best Kill Streak 4 | . 4 . 2 Combat Bots Only 4 | . 4 . 1 Max Kills in Single Turn 1 | . 1 . 1 Gunslinging . | . . . . Exploded 1 | . . . 1 Melee . | . . . . Uniques/NPCs Destroyed . | . . . . Combat | -11 -10 -10 -9 -------- Run | Scr Mat Min Mat Damage Taken 2345 | . 914 385 1046 Core 641 | . 121 120 400 Absorbed by Shields . | . . . . Regen/Repaired (Parts) 27 | . 27 . . Core Remaining (%) 51 | 100 . 3 . Volleys Fired 117 | . 80 5 32 Largest 2 | . 2 2 2 Hottest 115 | . 105 115 50 Shots Fired 192 | . 143 7 42 Gun 183 | . 143 7 33 Cannon . | . . . . Launcher 9 | . . . 9 Special . | . . . . Kinetic 94 | . 61 . 33 Thermal 68 | . 61 7 . Explosive 9 | . . . 9 Electromagnetic 21 | . 21 . . Robot Hit Streak 7 | . 7 3 4 Robot Miss Streak 5 | . 5 1 3 Penetration Max . | . . . . Secondary Targets 2 | . 2 . . Max Gunslinging Chain 1 | . 1 . . Shots Hit Robots 110 | . 79 7 24 Core Hits 50 | . 38 2 10 Critical Kills . | . . . . Critical Parts Destroyed 1 | . . . 1 Critical Strikes 6 | . 5 . 1 Burn 4 | . 4 . . Destroy 1 | . . . 1 Corrupt 1 | . 1 . . Melee Attacks 2 | . . 2 . Impact . | . . . . Slashing . | . . . . Piercing . | . . . . Sneak Attacks 2 | . . 2 . Combat Hostiles . | . . . . Follow-up Attacks . | . . . . Damage Inflicted 1734 | . 1111 66 557 Guns 1411 | . 1085 66 260 Cannons . | . . . . Explosions 296 | . . . 296 Melee . | . . . . Ramming 27 | . 26 . 1 Kinetic 730 | . 470 . 260 Thermal 466 | . 400 66 . Explosive 296 | . . . 296 Electromagnetic 215 | . 215 . . Impact . | . . . . Slashing . | . . . . Piercing . | . . . . Highest Corruption 15 | . . . 15 Average Corruption 12 | . . . 12 Corruption Purged . | . . . . Corruption Blocked . | . . . . Effects 23 | . . . 23 Message Errors 3 | . . . 3 Matter Fused 5 | . . . 5 Heat Flow Errors 4 | . . . 4 Energy Discharges 2 | . . . 2 Data Loss (minor) 2 | . . . 2 Data Loss (major) 2 | . . . 2 Misfires 2 | . . . 2 Misdirections 1 | . . . 1 Weapon Failures 2 | . . . 2 Overload Shots . | . . . . Overflow Damage 14 | . . . 14 Projectiles . | . . . . Explosions 14 | . . . 14 Melee . | . . . . Knockbacks . | . . . . Impact . | . . . . Kinetic . | . . . . Secondary . | . . . . Self-Inflicted Damage 49 | . . . 49 Shots 2 | . . . 2 Rammed 8 | . 6 . 2 Targets Rammed 17 | . 15 . 2 Kicked 8 | . 8 . . Crushed 1 | . 1 . . Highest Temperature 348 | . 348 123 224 Average Temperature 111 | . 119 67 62 Received Heat Transfer 999 | . 462 135 402 Effects 3 | . 3 . . Interference 3 | . 3 . . Siege Activations . | . . . . Robots Corrupted . | . . . . Combat Hostiles . | . . . . Parts Fried 1 | . 1 . . Impact Corruptions . | . . . . Robots Melted . | . . . . Combat Hostiles . | . . . . Parts Melted 3 | . 3 . . Heat Transferred 1628 | . 1443 185 . Parts Sabotaged . | . . . . Parts Stolen . | . . . . Parts Stripped . | . . . . Power Chain Reactions . | . . . . Missiles Intercepted . | . . . . Alert | -11 -10 -10 -9 ------- Run | Scr Mat Min Mat Peak Influence 205 | . 205 60 153 Initial 23 | . . 5 23 Average 58 | . 89 10 66 Maximum Alert Level 1 | . 1 . . Low Security (%) 99 | 100 98 100 100 Level 1 . | . 1 . . Level 2 . | . . . . Level 3 . | . . . . Level 4 . | . . . . Level 5 . | . . . . High Security . | . . . . Max Security . | . . . . Squads Dispatched 7 | . 5 . 2 Investigation 5 | . 4 . 1 Extermination . | . . . . Reinforcement 2 | . 1 . 1 Assault . | . . . . Garrison . | . . . . Intercept . | . . . . Searches Triggered . | . . . . Construction Impeded . | . . . . Haulers Reinforced . | . . . . Active Scanning Responses . | . . . . Cargo Convoy Interrupts . | . . . . Stealth | -11 -10 -10 -9 --------- Run | Scr Mat Min Mat Distress Signals 1 | . . . 1 Communications Jammed . | . . . . Distress Signals . | . . . . Times Spotted 46 | . 34 3 9 Peak Tracking Total 4 | . 4 4 4 Tactical Retreats 2 | . . 2 . Traps | -11 -10 -10 -9 ------- Run | Scr Mat Min Mat Traps Triggered 3 | . 3 . . Indirectly . | . . . . Trap Hack Attempts . | . . . . Triggered . | . . . . Disarmed . | . . . . Reprogrammed . | . . . . Reused . | . . . . Traps Extracted . | . . . . Installed 2 | . . 2 . Triggered . | . . . . Most Traps Carried 1 | . . 1 . Machines | -11 -10 -10 -9 ---------- Run | Scr Mat Min Mat Machines Disabled 1 | . 1 . . Max in Single Turn 1 | . 1 . . Machines Sabotaged . | . . . . Garrisons Compromised . | . . . . Overloaded Fab Kills . | . . . . Hacking | -11 -10 -10 -9 --------- Run | Scr Mat Min Mat Machines Accessed 4 | . 2 . 2 Terminals 2 | . 1 . 1 Fabricators . | . . . . Repair Stations 2 | . 1 . 1 Recycling Units . | . . . . Scanalyzers . | . . . . Garrison Access . | . . . . Total Hacks 15 | . 6 . 9 Successful 9 | . 6 . 3 Failed 6 | . . . 6 Catastrophic . | . . . . Database Lockouts . | . . . . Manual . | . . . . Terminals 5 | . 1 . 4 Fabricators . | . . . . Repair Stations 10 | . 5 . 5 Recycling Units . | . . . . Scanalyzers . | . . . . Garrison Access . | . . . . Terminal Hacks 3 | . 1 . 2 Repair Station Index 1 | . 1 . . Scanalyzer Index 1 | . . . 1 Registered Components 1 | . . . 1 Fabricator Hacks . | . . . . Repair Station Hacks 6 | . 5 . 1 Scan Component 3 | . 3 . . Repair 2 | . 2 . . Refit 1 | . . . 1 Recycling Unit Hacks . | . . . . Scanalyzer . | . . . . Garrison Access Hacks . | . . . . Unauthorized Hacks . | . . . . Terminals . | . . . . Fabricators . | . . . . Repair Stations . | . . . . Recycling Units . | . . . . Scanalyzers . | . . . . Garrison Access . | . . . . Data Cores Recovered . | . . . . Used . | . . . . Hacking Detections 3 | . 1 . 2 Full Trace Events 3 | . 1 . 2 Feedback Events 1 | . . . 1 Corruption 1 | . . . 1 Feedback Blocked . | . . . . Robot Schematics Acquired . | . . . . Robots Built . | . . . . Authchips . | . . . . Time . | . . . . Total Robot Build Rating . | . . . . Part Schematics Acquired . | . . . . Parts Built . | . . . . Authchips . | . . . . Time . | . . . . Total Part Build Rating . | . . . . Parts Repaired 2 | . 2 . . Time 58 | . 58 . . Parts Recycled . | . . . . Recycled Matter . | . . . . Retrieved Matter . | . . . . Retrieved Components . | . . . . Parts Scanalyzed . | . . . . Part Schematics Acquired . | . . . . Parts Damaged . | . . . . Bothacking | -11 -10 -10 -9 ------------ Run | Scr Mat Min Mat Used RIF Installer . | . . . . Robots Hacked 1 | . . 1 . Non-combat 1 | . . 1 . Combat . | . . . . Robot Hacks Applied 1 | . . 1 . no_distress 1 | . . 1 . Relay Couplers Released . | . . . . Fabnet Peak Effective % . | . . . . Robots Rewired . | . . . . Allies Hacked . | . . . . Hacks Repelled . | . . . . Allies | -11 -10 -10 -9 -------- Run | Scr Mat Min Mat Total Allies . | . . . . Largest Group . | . . . . Highest-Rated Group . | . . . . Highest-Rated Ally . | . . . . Total Orders . | . . . . Ally Attacks . | . . . . Total Damage . | . . . . Kills . | . . . . Allies Corrupted . | . . . . Allies Melted . | . . . . Intel | -11 -10 -10 -9 ------- Run | Scr Mat Min Mat Robot Analysis Total . | . . . . Derelict Logs Recovered . | . . . . Drone Launches . | . . . . Drone Recoveries . | . . . . Exploration | -11 -10 -10 -9 ------------- Run | Scr Mat Min Mat Turns Passed 2929 | 499 1253 324 853 Spaces Moved 1494 | 203 654 269 368 Core 298 | 11 . 112 175 Treads 564 | 192 372 . . Legs 439 | . 282 157 . Wheels . | . . . . Hover 193 | . . . 193 Flight . | . . . . Fastest Speed 50 | 50 120 100 156 Average Speed 154 | 154 143 111 207 Slowest Speed 300 | 160 190 120 300 Overloaded Moves . | . . . . Propulsion Burnouts . | . . . . Robots Hopped . | . . . . Cave-ins Triggered 1 | . . . 1 Exploration Rate (%) 38 | 16 59 61 19 Regions Visited 3 Branch Regions 1 Pre-discovered Areas . | . . . . Known Exits Taken . | . . . . Unknown Exits Taken 3 | 1 1 1 . Scrap Searched . | . . . . Spaces Dug . | . . . . Terrain Destroyed 84 | . . . 84 Melee . | . . . . Projectile . | . . . . AOE 84 | . . . 84 Terrain Rammed . | . . . . Walls Destroyed . | . . . . Machines Disabled . | . . . . Actions | -11 -10 -10 -9 --------- Run | Scr Mat Min Mat Total 1917 | 389 828 286 414 Wait 200 | 171 26 . 3 Move 1491 | 202 653 268 368 Hop . | . . . . Pick Up 39 | 10 23 3 3 Fast Attach . | . . . . Attach 21 | 6 7 3 5 Detach 1 | . 1 . . Swap 5 | . 5 . . Drop 21 | . 18 3 . Fire 117 | . 80 5 32 Melee 2 | . . 2 . Ram 3 | . . . 3 Kick 8 | . 8 . . Crush 7 | . 7 . . Escape Stasis . | . . . . Rewire . | . . . . Trap 2 | . . 2 . Miscellaneous . | . . . . Route ------- -11/Scrapyard -10/Materials (discovered 3 exits: *Mat / [*Min x2]) -10/Mines -9/Materials History --------- Turn | Location | Event 9 | -11/Scrapyard | Discovered new exit (range 15) 500 | -11/Scrapyard | Entered Materials 501 | -10/Materials | Build established: Mutant 831 | -10/Materials | Discovered new exit (range 16) 885 | -10/Materials | Discovered new exit (range 13) 1620 | -10/Materials | Discovered new exit (range 16) 1647 | -10/Materials | Repaired Rnf. Ion Engine 1673 | -10/Materials | Repaired Aluminum Leg 1753 | -10/Materials | Entered Mines 1768 | -10/Mines | Met a Derelict bent on vengeance 1788 | -10/Mines | Found a hidden stash of uninstalled traps 1953 | -10/Mines | Core integrity fell below 50% 1971 | -10/Mines | Core integrity fell below 20% 1992 | -10/Mines | Lost 4 parts (1n1u2w) 2071 | -10/Mines | Discovered new exit (range 6) 2077 | -10/Mines | Entered Materials 2077 | -9/Materials | Evolved 2 slots: Utility x1, Weapon x1 2452 | -9/Materials | Crushed by falling debris 2452 | -9/Materials | System corruption reached 10% 2483 | -9/Materials | Lost 4 parts (1p1n2u) 2594 | -9/Materials | Lost 3 parts (1n1u1w) 2897 | -9/Materials | Core integrity fell below 50% 2913 | -9/Materials | Core integrity fell below 20% 2930 | -9/Materials | Destroyed by G-34 Mercenary with Small Laser Last Messages --------------- Investigation squad. 02831_ T,V|QC DYDHT4>EJGOP4H# 02846_ System corrupted: Heat flow error (+150). 02861_ System corrupted: Heat flow error (+126). 02877_ U-05 Engineer destroyed. 02891_ R-06 Scavenger collects Welding Torch. 02893_ R-06 Scavenger collects Terrain Scan Processor. 02893_ Assault Rifle destroyed. 02895_ R-06 Scavenger collects Wheel. 02896_ System corrupted: Energy discharge (-34). 02897_ R-06 Scavenger collects Structural Scanner. 02899_ R-06 Scavenger collects Wheel. 02900_ Datajack destroyed. 02902_ K-01 Serf collects debris. 02903_ Slammed into G-34 Mercenary. 02903_ Destabilizing: System corrupted (+2). 02905_ Slammed into G-34 Mercenary. 02906_ K-01 Serf collects debris. 02910_ ECM Suite destroyed. 02914_ SMEPZV9JTURAF|IF#LA5JGP:X|4| Map ----- +----------------------------------------------------+ | ??????????????????????????????????????? | | ??????????????????????????????????????? | | ??????????????????????????????????????? | | ??????????????????????????????????????? | | ??????????????????????????????????????? | | ??????????????????????????????????????? | | ??????????????????????????????????????? | | ??????????????????????????????????????? | | ??????????????????????????????????????? | | ??????????###########?????????????????? | | ??????????# #?????????????????? | | ??????????# #?????????????????? | | ??????????# #?????????????????? | | ??????????# """ """ #?????????????????? | | ??????????# """ """ #?????????????????? | | ??????????# """ """ #?????????????????? | | ??????????# #?????????????????? | | ??????????# #?????????????????? | | ??????????####+######?????????????????? | | ????????????# #?????????????????????? | | ???########## #?????????????????????? | | ???# #?????????????????????? | | ???# ##### #?????????????????????? | | ???# #???# #?????????????????????? | | ???# #???# #?????????????????????? | | ???# #???# @ #?????????????????????? | | ???# #???# #?????????????????????? | | ???# #???# #?????????????????????? | | ???# ####???# #?????????????????????? | | ???# #?###### #??????????#??????????? | | ???# #?# # #???????? #??????????? | | ???# #?# # gg######## #??????????? | | ???# #?# # #??????????? | | ?### ### # g % #??????????? | | ?# # # #??????????? | | ?# # # ############??????????? | | ?# T + # #?????????????????????? | | ?# # # #?????????????????????? | | ?# # # ############??????????? | | ?## ####### ## #??????????? | | ??# #????# # #??????????? | | ??# #????# # #??????????? | | ??# #????# + """ #??????????? | | ??# #????# # """ " " #??????????? | | ??# #????# # """ "R" #??????????? | | ??# ####### ## """ #??????????? | | ??# + # ## #?????" ??? | | ??# # """ # #############????" ???? | | ??# # """ # ?? ????? | | ??# # """ # ? ?????? | +----------------------------------------------------+ Best States ------------- Heat Dissipation 28 Energy Generation 12 Energy Capacity 265 Matter Stores 300 Matter Capacity 300 Sight Range 16 Robot Scan Range 14 Terrain Scan Density 10 ECM Strength 1 Additional Mass Support 6 Armor Coverage 150 Evasion (%) 55 Recoil Reduction 2 Item Schematics ----------------- None Robot Schematics ------------------ None Fabricated ------------ Nothing Alien Tech Used ----------------- None Achievements -------------- Close Call Loot Pinata System Compromised Unlikely Earthworm Challenges ------------ None Game ------ Seed ShieldOpticalSpear Manual? 0 Play Time 00:32:48 Cumulative 3.1 hours Start 2022.05.05 @ 21:17:58 End 2022.05.05 @ 21:52:17 Sessions 2 Manual Loads 0 Difficulty Rogue Special Mode None Game No. 4 Rogue 4 Adventurer 0 Explorer 0 Win Type - Total 0 Types 0/0/0/0/0/0/0/0/0 Lore% 1 Gallery% 6 Achievement% 5 Wizard Run 0 Options --------- ASCII 0 Keyboard 0 Movement Numpad Keybinds 0 Fullscreen 1 Font 20/Terminus Map View 76x50 Tactical HUD 1 Map Filters NONE Filters NONE Steam 1 RUN: 1f41f47f-0cf9-4f5e-a0ac-2b80efa9ed46